bitfinex/quotes_ETHUSD_20250328
["timestamp","ask_amount","ask_price","bid_price","bid_amount"]
[1743171700882,1.5991,1890.5,1890.1,5.29072]
[1743171701279,5.29006,1890.4,1889.9,5.29106]
[1743171701475,5.4020183,1890.2,1889.8,8.29151]
[1743171701688,1.5963,1890.0,1889.7,1.06119204]
[1743171701892,6.88755,1890.0,1889.7,1.06119204]
[1743171702238,0.10176653,1889.9,1889.6,5.29199]
[1743171702389,0.10176653,1889.9,1889.5,10.58448]
[1743171702704,11.40317653,1889.9,1889.5,5.29222]
[1743171702904,13.23223618,1889.9,1889.5,5.29222]
[1743171703109,13.23223618,1889.9,1889.5,3.0]
[1743171703304,5.29159,1889.8,1889.5,3.0]
[1743171703505,0.11331847,1889.7,1889.5,8.34517604]
[1743171703679,6.01,1889.9,1889.6,5.29209]
[1743171703874,0.11331847,1889.8,1889.7,5.34463601]
[1743171704081,6.01,1889.9,1889.7,5.29172]
[1743171704310,0.11184362,1889.8,1889.7,5.29162]
[1743171704615,5.29104,1890.0,1889.6,5.29203]
[1743171704783,0.11184362,1889.8,1889.7,5.29181]
[1743171704984,5.29087,1890.1,1889.7,5.29181]
[1743171705195,0.11184362,1889.8,1889.7,5.29181]
[1743171705394,5.29087,1890.1,1889.7,5.29181]
[1743171705593,0.11286964,1889.8,1889.7,5.29181]
[1743171705798,5.29122,1890.0,1889.6,5.29208]
[1743171706105,10.58247,1890.0,1889.5,8.29222]
[1743171706305,0.11286964,1889.9,1889.5,8.29222]
[1743171706510,5.40424964,1889.9,1889.5,8.29222]
[1743171706692,6.97644964,1889.9,1889.5,8.29222]
[1743171706890,1.68506964,1889.9,1889.5,8.29222]
[1743171707093,6.97648964,1889.9,1889.5,8.29222]
[1743171707400,8.2032606,1889.9,1889.5,3.0]
[1743171707712,2.9118406,1889.9,1889.5,8.29236]
[1743171707916,0.11286964,1889.9,1889.8,5.29156]
[1743171708215,7.7221483,1890.2,1889.8,5.29156]
[1743171708216,13.0127283,1890.2,1889.8,5.29156]
[1743171708415,0.11242078,1889.9,1889.8,5.29156]
[1743171708716,0.11242078,1889.9,1889.7,5.29183]
[1743171708916,5.29073,1890.1,1889.7,10.58351]
[1743171709090,0.11242078,1890.0,1889.7,5.29168]
[1743171709491,5.94388586,1890.0,1889.6,10.8791]
[1743171709716,5.2913,1889.9,1889.6,10.8791]
[1743171710209,5.40401078,1889.8,1889.6,5.587]
[1743171710410,1.70152078,1889.8,1889.5,8.2923]
[1743171710582,1.70152078,1889.8,1889.6,5.29203]
[1743171710781,1.70152078,1889.8,1889.7,5.29184]
[1743171710987,0.11242078,1889.8,1889.7,5.29184]
[1743171711386,12.17093,1890.1,1889.7,5.29184]
[1743171711687,6.87999,1890.1,1889.7,5.29184]
[1743171711881,0.11280552,1890.0,1889.5,3.0]
[1743171712088,1.5891,1890.1,1889.8,5.29144]
[1743171712287,0.11280552,1890.0,1889.8,5.29152]
[1743171712643,0.11280552,1890.0,1889.9,10.89528]
[1743171712842,0.11280552,1890.0,1889.9,13.89528]
[1743171713135,0.1114483,1890.2,1890.0,5.291]
[1743171713335,0.1114483,1890.2,1890.0,8.29091]
[1743171713537,0.1114483,1890.2,1890.1,5.29072]
[1743171715542,0.1114483,1890.2,1890.1,13.2094002]
[1743171716797,0.1114483,1890.2,1890.1,10.37592]
[1743171717195,0.1114483,1890.2,1890.1,30.36515057]
[1743171717395,0.1114483,1890.2,1890.1,8.69076927]
[1743171717591,0.1114483,1890.2,1890.1,8.29072]
[1743171718022,0.1114483,1890.2,1890.1,3.0]
[1743171718723,1.6756483,1890.2,1890.0,27.979]
[1743171719022,1.6756483,1890.2,1890.0,33.26986]
[1743171719225,1.6756483,1890.2,1890.0,27.979]
[1743171719426,1.6756483,1890.2,1890.0,38.56084]
[1743171719626,1.6756483,1890.2,1890.0,33.26986]
[1743171719829,0.1114483,1890.2,1890.1,5.29072]
[1743171720326,0.1114483,1890.2,1890.0,27.979]
[1743171720531,0.1114483,1890.2,1890.1,5.29072]
[1743171720718,0.1114483,1890.2,1890.1,5.34362233]
[1743171720893,0.1114483,1890.2,1890.1,5.29072]
[1743171721512,0.1114483,1890.2,1890.0,35.914524]
[1743171721711,0.1114483,1890.2,1890.1,5.29072]
[1743171722011,0.1114483,1890.2,1890.0,33.26973]
[1743171722697,0.1114483,1890.2,1890.1,12.57630933]
[1743171722898,0.1114483,1890.2,1890.1,14.944183]
[1743171723323,0.1114483,1890.2,1890.1,16.574404]
[1743171724222,0.21814934,1890.2,1890.1,16.574404]
[1743171724823,0.21814934,1890.2,1890.1,20.678186]
[1743171725204,9.34e-06,1890.2,1890.1,22.810986]
[1743171725400,6.01,1890.9,1890.6,5.2892]
[1743171725730,6.01,1891.0,1890.7,5.28901]
[1743171725935,11.29829,1891.0,1890.7,5.28901]
[1743171726230,16.58672,1891.0,1890.6,10.93615]
[1743171726436,12.01127,1891.0,1890.7,5.28894]
[1743171726729,5.28862,1890.9,1890.5,5.28957]
[1743171727031,5.28862,1890.9,1890.5,16.21988]
[1743171727248,11.29822,1891.0,1890.6,5.2892]
[1743171727407,6.01,1891.0,1890.7,5.28878]
[1743171727599,11.29837,1891.0,1890.6,5.28926]
[1743171727804,5.28858,1890.9,1890.6,5.2893]
[1743171728225,5.28858,1890.9,1890.5,10.93047]
[1743171728429,5.28858,1890.9,1890.5,5.28947]
[1743171728599,5.28879,1890.8,1890.5,5.28947]
[1743171728807,5.28858,1890.9,1890.5,5.28943]
[1743171729123,0.02937422,1891.2,1891.1,5.28792]
[1743171729332,0.02937422,1891.2,1891.1,8.28792]
[1743171730009,0.02937422,1891.2,1891.1,13.94392]
[1743171730336,0.02937422,1891.2,1891.1,16.588604]
[1743171731153,0.02937422,1891.2,1891.1,13.94392]
[1743171731458,0.02937422,1891.2,1891.1,14.33915655]
[1743171732114,0.02937422,1891.2,1891.1,14.88915655]
[1743171732416,0.02937422,1891.2,1891.1,24.68841355]
[1743171732608,0.02937422,1891.2,1891.1,26.21541355]
[1743171732807,0.02937422,1891.2,1891.1,15.40084255]
[1743171733012,0.02937422,1891.2,1891.1,14.33415655]
[1743171733314,0.1114483,1892.1,1892.0,6.90691]
[1743171733525,0.1114483,1892.1,1892.0,8.28541]
[1743171733730,0.1114483,1892.1,1892.0,14.00341]
[1743171733928,6.01,1892.9,1892.8,5.28317]
[1743171734237,1.5644,1893.1,1892.7,5.731]
[1743171734238,7.5744,1893.1,1892.7,5.731]
[1743171734440,0.10831234,1892.9,1892.8,5.28292]
[1743171734736,0.11804553,1892.9,1892.8,5.28292]
[1743171734943,5.28305,1892.9,1892.4,11.00814]
[1743171735239,6.13258658,1892.8,1892.3,8.67490994]
[1743171735541,5.28356,1892.7,1892.3,5.73]
[1743171735838,5.28356,1892.7,1891.9,5.28568]
[1743171735839,5.28452,1892.4,1891.9,11.0185]
[1743171736055,5.28452,1892.4,1892.0,33.2444]
[1743171736211,1.6272,1892.5,1892.1,5.2849]
[1743171736542,5.2831,1892.9,1892.3,8.11433662]
[1743171736543,0.11237103,1892.4,1892.3,8.11433662]
[1743171736758,6.9436,1892.9,1892.4,3.0]
[1743171736918,8.36506,1892.9,1892.5,0.05283527]
[1743171737284,0.10580143,1892.8,1892.5,5.948]
[1743171737559,0.10580143,1892.8,1892.5,5.953]
[1743171737560,16.57658,1892.8,1892.5,5.953]
[1743171737725,5.38916172,1892.7,1892.5,5.953]
[1743171737931,5.38916172,1892.7,1892.5,11.23699]
[1743171737932,0.10548172,1892.7,1892.5,11.23699]
[1743171738257,0.10548172,1892.7,1892.3,5.28457]
[1743171738441,0.10548172,1892.7,1892.4,5.28418]
[1743171738442,0.71702989,1892.7,1892.4,5.28418]
[1743171738756,0.10548172,1892.7,1892.6,5.28373]
[1743171739044,0.10548172,1892.7,1892.5,5.28388]
[1743171739257,0.10548172,1892.7,1892.4,5.28428]
[1743171739462,0.10548172,1892.7,1892.5,5.28399]
[1743171739615,0.10548172,1892.7,1892.4,5.28419]
[1743171739966,0.10548172,1892.7,1892.3,16.51295]
[1743171740161,0.10548172,1892.7,1892.0,31.35839583]
[1743171740162,7.6629,1892.6,1892.0,27.959]
[1743171740325,6.93775,1892.2,1891.7,5.28624]
[1743171740532,6.93775,1892.2,1891.7,5.28611]
[1743171740533,16.68575595,1892.1,1891.7,5.28611]
[1743171740731,16.68575595,1892.1,1891.4,7.5921]
[1743171740732,6.11522595,1892.1,1891.8,5.28577]
[1743171741040,6.11522595,1892.1,1891.9,5.28552]
[1743171741245,6.11522595,1892.1,1891.9,5.28548]
[1743171741855,6.11522595,1892.1,1891.8,11.2337]
[1743171742139,11.40057595,1892.1,1891.5,14.23564]
[1743171742343,5.286,1891.8,1891.3,33.23515]
[1743171742544,5.28654,1891.6,1891.2,5.28764]
[1743171742727,11.29691,1891.5,1891.0,11.23818]
[1743171742921,6.01,1891.5,1891.0,5.95]
[1743171743114,6.01,1891.5,1891.3,5.28727]
[1743171743318,6.01,1891.5,1891.2,5.28739]
[1743171743530,11.29684,1891.5,1891.1,5.88292]
[1743171743723,11.29684,1891.5,1891.0,5.95]
[1743171743724,6.01,1891.5,1891.0,5.95]
[1743171743937,6.01,1891.5,1891.3,5.28726]
[1743171744144,6.01,1891.5,1891.1,10.5756]
[1743171744315,6.01,1891.5,1891.3,5.28732]
[1743171744520,11.29694,1891.5,1891.0,5.28801]
[1743171744720,11.29694,1891.5,1891.1,5.28789]
[1743171745028,12.85264,1891.4,1890.7,5.945]
[1743171745229,7.5655,1891.4,1890.8,0.05287963]
[1743171745418,7.5655,1891.4,1890.8,8.28849]
[1743171745624,1.5555,1891.4,1891.2,5.28753]
[1743171745825,6.01,1891.6,1891.4,5.28707]
[1743171746341,6.01,1891.6,1891.5,5.2868]
[1743171746670,6.01,1891.6,1891.4,5.28697]
[1743171746867,6.01,1891.6,1891.3,10.57454]
[1743171747069,6.01,1891.6,1891.3,8.28735]
[1743171747372,6.01,1891.6,1891.4,5.28697]
[1743171747573,6.01,1891.6,1891.5,5.2868]
[1743171748075,6.01,1891.6,1891.4,5.28697]
[1743171748243,6.01,1891.6,1891.4,5.28692]
[1743171748446,6.01,1891.6,1891.5,5.2868]
[1743171748937,6.01,1891.6,1891.3,3.0]
[1743171749264,1.5478,1891.5,1891.3,3.0]
[1743171749471,1.5478,1891.5,1891.3,8.28723]
[1743171749636,1.5478,1891.5,1891.3,8.28718]
[1743171749836,6.01,1891.6,1891.5,5.2868]
[1743171750051,7.5578,1891.7,1891.5,5.2868]
[1743171750458,7.5578,1891.7,1891.1,8.28782]
[1743171750459,7.5578,1891.7,1891.3,5.28736]
[1743171750633,7.5578,1891.7,1891.4,5.28704]
[1743171751264,12.84416,1891.7,1891.3,8.28724]
[1743171751443,12.84416,1891.7,1891.3,8.28733]
[1743171751753,12.84416,1891.7,1891.0,7.23275519]
[1743171751754,5.28653,1891.6,1891.0,7.23275519]
[1743171751967,5.28653,1891.6,1891.2,5.28746]
[1743171752265,5.2872,1891.4,1891.1,5.2879]
[1743171752467,5.28673,1891.6,1891.2,5.28755]
[1743171752666,5.2867,1891.6,1891.2,5.28755]
[1743171752877,5.2867,1891.6,1891.1,5.28791]
[1743171752878,5.28692,1891.5,1891.1,5.28791]
[1743171753650,6.95093,1891.4,1891.0,5.28817]
[1743171753969,5.28791,1891.2,1890.9,27.95]
[1743171754171,6.95173,1891.1,1890.7,5.28889]
[1743171754476,6.95173,1891.1,1890.5,1.5706]
[1743171754477,7.6737,1891.1,1890.5,4.5706]
[1743171754670,12.96185,1891.1,1890.7,5.28888]
[1743171754877,12.96169,1891.1,1890.7,5.28888]
[1743171755171,5.28834,1891.0,1890.4,11.19987]
[1743171755470,5.28866,1890.9,1890.5,13.57897]
[1743171755671,5.28823,1891.0,1890.6,5.28918]
[1743171755873,5.28823,1891.0,1890.5,3.0]
[1743171756080,5.28877,1890.8,1890.5,3.0]
[1743171756248,1.535,1890.7,1890.5,3.0]
[1743171756453,1.535,1890.7,1890.5,8.28938]
[1743171756871,16.58728,1890.9,1890.6,5.28914]
[1743171756872,6.01,1890.9,1890.6,5.28914]
[1743171757176,12.73451394,1890.9,1890.5,5.28938]
[1743171757385,11.29852,1890.9,1890.5,10.57882]
[1743171757669,6.01,1890.9,1890.7,5.28881]
[1743171757858,6.01,1890.9,1890.8,5.28876]
[1743171758065,6.01,1890.9,1890.6,5.28915]
[1743171758459,11.2985,1890.9,1890.4,6.87979]
[1743171758761,6.79292,1890.6,1890.2,33.24142]
[1743171758960,1.5036,1890.6,1890.3,3.0]
[1743171759159,6.01,1890.8,1890.3,3.0]
[1743171759160,7.5136,1890.8,1890.5,5.28946]
[1743171759473,7.5136,1890.8,1890.4,5.28964]
[1743171759678,12.80251,1890.8,1890.4,5.28964]
[1743171760050,12.80251,1890.8,1890.4,10.57934]
[1743171760251,7.5136,1890.8,1890.5,5.28959]
[1743171760449,5.2892,1890.7,1890.3,8.29011]
[1743171760651,5.28904,1890.7,1890.3,3.0]
[1743171760871,5.28967,1890.5,1890.3,3.0]
[1743171761173,5.28967,1890.5,1890.2,27.951]
[1743171761478,5.28932,1890.6,1890.2,33.24142]
[1743171761777,10.57835,1890.7,1890.3,5.29006]
[1743171761975,5.28944,1890.6,1890.2,27.951]
[1743171762154,5.2896,1890.5,1890.2,27.951]
[1743171762364,6.83828,1890.4,1890.2,27.951]
[1743171762685,7.5583,1890.6,1890.2,27.951]
[1743171762872,7.5583,1890.6,1890.3,5.28996]
[1743171763067,12.84762,1890.6,1890.3,5.28996]
[1743171763267,12.84762,1890.6,1890.2,38.5316]
[1743171763585,6.01,1890.6,1890.3,5.29006]
[1743171763785,6.01,1890.6,1890.3,5.28998]
[1743171764376,6.01,1890.6,1890.2,27.951]
[1743171764570,6.01,1890.6,1890.3,5.29013]
[1743171764887,6.01,1890.6,1890.1,3.05]
[1743171764888,6.01,1890.6,1890.4,6.86335]
[1743171765059,6.01,1890.6,1890.4,5.28985]
[1743171765758,6.01,1890.6,1890.3,0.529039]
[1743171765958,6.01,1890.6,1890.4,5.28973]
[1743171766353,6.01,1890.6,1890.2,5.29028]
[1743171766558,5.28998,1890.4,1890.1,5.34071]
[1743171766786,1.5184,1890.5,1890.1,0.05]
[1743171767084,6.01,1890.6,1890.3,5.29004]
[1743171767287,6.01,1890.6,1890.1,6.9419]
[1743171767488,5.2903,1890.3,1890.1,0.05]
[1743171767691,7.675,1890.2,1890.1,0.05]
[1743171767889,12.96544,1890.2,1890.1,0.05]
[1743171771561,7.675,1890.2,1890.1,0.05]
[1743171771761,7.675,1890.2,1890.1,5.34072]
[1743171771762,6.01,1890.2,1890.1,5.34072]
[1743171771972,1.6663,1890.5,1890.2,5.2904]
[1743171772181,6.01,1890.6,1890.5,5.2896]
[1743171772366,6.01,1890.8,1890.5,5.2896]
[1743171772779,6.01,1890.8,1890.5,5.28943]
[1743171772993,6.01,1890.8,1890.5,6.34736]
[1743171773863,6.01,1891.1,1890.7,1.5639]
[1743171774066,6.01,1891.2,1890.7,4.5639]
[1743171774285,11.29773,1891.2,1890.8,5.28866]
[1743171774595,6.01,1891.2,1890.9,5.28848]
[1743171774985,11.29774,1891.2,1890.8,5.28859]
[1743171775178,11.29774,1891.2,1890.8,10.5772]
[1743171775497,11.29774,1891.2,1890.8,10.57718]
[1743171775667,11.29774,1891.2,1890.8,12.091288]
[1743171775868,6.01,1891.2,1890.9,5.28848]
[1743171776069,7.6451,1891.3,1891.0,5.28805]
[1743171776669,12.93247,1891.3,1890.9,10.57678]
[1743171776974,7.6451,1891.3,1891.0,5.28811]
[1743171777185,7.5318,1891.6,1891.2,5.28739]
[1743171777395,7.5318,1891.6,1891.1,0.528811]
[1743171777598,5.28694,1891.5,1891.1,5.816631]
[1743171777797,12.81841,1891.6,1891.2,5.28761]
[1743171777999,12.81841,1891.6,1891.2,5.28746]
[1743171778179,12.81836,1891.6,1891.2,5.28754]
[1743171779109,5.28749,1891.3,1890.9,1.5065]
[1743171779293,5.28749,1891.3,1890.9,5.2883]
[1743171779498,5.28711,1891.4,1891.0,5.28807]
[1743171780014,10.57442,1891.4,1891.0,5.28807]
[1743171780212,9.342261,1891.6,1890.9,5.2883]
[1743171780213,5.28737,1891.3,1890.9,5.2883]
[1743171780411,5.28685,1891.5,1890.9,1.357704]
[1743171780580,7.5318,1891.6,1891.1,1.6608]
[1743171780914,5.28754,1891.3,1890.9,5.28842]
[1743171781079,5.2875,1891.3,1890.9,5.28842]
[1743171781280,5.2875,1891.3,1890.9,5.28829]
[1743171781487,5.2871,1891.4,1890.9,5.34116818]
[1743171781693,5.28682,1891.5,1890.9,6.32803786]
[1743171781888,10.57507,1891.3,1890.9,6.32803786]
[1743171782088,5.2875,1891.3,1890.9,6.32803786]
[1743171782385,5.2875,1891.3,1891.0,5.2882]
[1743171782600,11.2975,1891.3,1890.9,6.32803786]
[1743171782800,6.01,1891.3,1890.9,1.09245487]
[1743171783107,6.01,1891.3,1891.0,5.28799]
[1743171783311,6.01,1891.3,1890.9,5.2884]
[1743171783624,1.5854,1891.2,1891.0,5.28816]
[1743171783916,6.01,1891.3,1890.8,16.13035039]
[1743171784099,1.6336,1891.1,1890.5,1.5273]
[1743171784302,6.01,1891.0,1890.6,0.05288655]
[1743171784476,6.01,1891.0,1890.6,5.28916]
[1743171784682,6.01,1891.0,1890.7,8.28893]
[1743171785094,11.29832,1891.0,1890.7,3.0]
[1743171785419,6.01,1891.0,1890.7,8.28895]
[1743171785592,6.01,1891.0,1890.7,13.57784]
[1743171785796,11.29824,1891.0,1890.7,8.28889]
[1743171785995,6.01,1891.0,1890.7,5.28893]
[1743171786187,6.01,1891.0,1890.8,5.28873]
[1743171786518,11.29824,1891.0,1890.7,5.28893]
[1743171786719,11.29824,1891.0,1890.6,5.28926]
[1743171786923,6.01,1891.0,1890.8,5.28876]
[1743171787090,11.29822,1891.0,1890.6,8.69317827]
[1743171787518,1.574,1890.9,1890.4,5.28981]
[1743171787716,5.28901,1890.8,1890.3,10.58003]
[1743171788019,5.28898,1890.8,1890.4,5.28982]
[1743171788222,10.57836,1890.7,1890.3,5.28998]
[1743171788403,10.57836,1890.7,1890.1,28.017]
[1743171788404,5.28923,1890.7,1890.1,29.08754903]
[1743171788719,11.29877,1890.8,1890.4,5.28987]
[1743171789098,6.01,1890.8,1890.5,5.28953]
[1743171789399,11.29888,1890.8,1890.4,5.28986]
[1743171789624,6.01,1890.8,1890.4,5.28974]
[1743171789795,11.29889,1890.8,1890.4,5.818834]
[1743171790001,16.58785,1890.8,1890.4,5.818834]
[1743171790418,16.58785,1890.8,1890.6,5.28914]
[1743171790419,6.01,1890.8,1890.6,5.28914]
[1743171790598,6.01,1890.8,1890.7,5.28904]
[1743171790798,6.01,1891.0,1890.6,5.28914]
[1743171791045,6.01,1891.0,1890.7,5.28883]
[1743171791430,11.2984,1891.0,1890.6,5.28925]
[1743171791737,6.01,1891.0,1890.9,5.28848]
[1743171791903,0.2,1891.2,1891.1,5.28792]
[1743171793000,0.2,1891.2,1891.0,5.28817]
[1743171793226,0.2,1891.2,1891.0,5.34104545]
[1743171793425,0.2,1891.2,1891.1,5.28792]
[1743171793628,0.2,1891.2,1891.1,5.86446742]
[1743171793825,0.2,1891.2,1891.1,5.91733853]
[1743171794305,0.2,1891.2,1891.1,5.86446742]
[1743171794496,0.2,1891.2,1891.1,0.57654742]
[1743171794699,0.2,1891.2,1891.1,5.86446742]
[1743171794899,0.2,1891.2,1891.1,0.57654742]
[1743171795121,1.7864,1891.2,1890.7,8.28891]
[1743171795395,5.28825,1891.0,1890.7,3.0]
[1743171795705,5.28822,1891.0,1890.6,5.28914]
[1743171796026,6.91541,1890.8,1890.5,1.08113259]
[1743171796334,1.6266,1890.8,1890.5,6.37070259]
[1743171796624,1.6266,1891.0,1890.7,5.28893]
[1743171797023,1.6266,1891.0,1890.7,5.28902]
[1743171797325,1.84,1891.2,1890.9,5.28824]
[1743171798151,5.28831,1891.0,1890.6,5.92613026]
[1743171798452,1.583,1890.9,1890.5,5.28942]
[1743171798745,6.8715,1890.9,1890.6,0.528942]
[1743171799054,6.8715,1890.9,1890.5,10.57885]
[1743171799208,12.16017,1890.9,1890.5,5.28939]
[1743171799403,1.583,1890.9,1890.4,27.961]
[1743171799733,5.28795,1891.1,1890.7,10.57777]
[1743171799939,5.28795,1891.1,1890.7,5.28885]
[1743171800436,5.28795,1891.1,1890.7,5.28879]
[1743171800852,6.99575,1891.2,1890.6,1.5762]
[1743171800853,6.99575,1891.2,1890.8,5.28866]
[1743171801149,5.28802,1891.1,1890.7,5.28895]
[1743171801357,5.28802,1891.1,1890.7,5.34183413]
[1743171801528,5.28802,1891.1,1890.7,5.28886]
[1743171802153,5.28802,1891.1,1890.6,12.15478]
[1743171802454,5.28802,1891.1,1890.7,5.28891]
[1743171802835,5.28802,1891.1,1890.7,10.57784]
[1743171803220,5.28802,1891.1,1890.7,11.793244]
[1743171803426,5.28802,1891.1,1890.8,5.28873]
[1743171803628,6.99578,1891.2,1891.1,5.28792]
[1743171803629,0.2,1891.2,1891.1,5.28792]
[1743171803851,0.2,1891.2,1891.1,6.97459387]
[1743171804176,5.48768,1891.2,1890.8,11.02966]
[1743171804339,1.591,1891.1,1890.7,13.57791]
[1743171804665,1.591,1891.1,1890.8,5.28873]
[1743171804873,6.87906,1891.1,1890.7,8.28901]
[1743171805031,6.87906,1891.1,1890.6,5.28931]
[1743171805352,5.28829,1891.0,1890.7,5.28903]
[1743171805553,5.28829,1891.0,1890.6,5.28915]
[1743171805730,5.28829,1891.0,1890.6,10.57832]
[1743171805935,10.57667,1891.0,1890.6,5.28915]
[1743171806132,5.28829,1891.0,1890.6,5.28915]
[1743171806344,6.87897,1891.1,1890.6,1.73710652]
[1743171806654,6.87897,1891.1,1890.7,5.28904]
[1743171806862,6.87897,1891.1,1890.7,5.28891]
[1743171807076,6.87897,1891.1,1890.8,5.28874]
[1743171807232,5.28821,1891.0,1890.7,5.28891]
[1743171807451,5.28848,1890.9,1890.5,10.57903]
[1743171807642,5.28848,1890.9,1890.5,16.32003]
[1743171807839,10.57664,1891.0,1890.6,5.28928]
[1743171808171,1.62,1890.9,1890.3,5.29007]
[1743171808374,1.5094,1890.5,1890.2,33.25131]
[1743171808555,6.79912,1890.5,1890.2,27.961]
[1743171809054,1.5094,1890.5,1890.4,5.28988]
[1743171809262,5.2885,1890.9,1890.6,5.28932]
[1743171809445,5.28845,1891.0,1890.6,5.28913]
[1743171809647,0.2,1891.2,1890.9,5.28838]
[1743171810147,5.28807,1891.1,1890.7,5.28903]
[1743171810453,1.5018,1891.0,1890.8,5.28865]
[1743171810652,1.5018,1891.0,1890.8,5.28863]
[1743171811647,7.01125,1891.2,1890.9,5.28848]
[1743171811853,1.7236,1891.2,1891.0,5.28803]
[1743171812059,0.2,1891.2,1891.1,11.02692]
[1743171812274,0.2,1891.2,1891.1,29.775799]
[1743171812575,0.2,1891.2,1891.1,22.538907]
[1743171812778,0.2,1891.2,1891.1,23.088907]
[1743171812970,0.2,1891.2,1891.1,22.381781]
[1743171813169,0.2,1891.2,1891.1,23.64019442]
[1743171813546,1e-05,1891.2,1891.1,23.64019442]
[1743171814450,1.5738,1892.2,1891.9,5.28569]
[1743171814857,1.5738,1892.2,1892.0,5.28535]
[1743171815074,5.28429,1892.4,1892.0,5.28535]
[1743171815075,1.5388,1892.4,1892.1,5.28498]
[1743171815296,12.10761,1892.4,1892.0,5.28528]
[1743171815473,5.2849,1892.2,1891.8,5.28596]
[1743171815664,5.2849,1892.2,1891.8,11.01296]
[1743171815868,5.2849,1892.2,1891.8,5.28583]
[1743171816270,5.2849,1892.2,1891.8,5.28577]
[1743171816470,1.5388,1892.4,1891.8,0.05285592]
[1743171816671,1.5388,1892.4,1892.1,5.28493]
[1743171817106,7.88475003,1892.8,1892.4,5.28415]
[1743171817312,1.5405,1892.8,1892.2,7.2741]
[1743171817521,1.5405,1892.8,1892.4,5.28416]
[1743171817671,1.5405,1892.8,1892.5,5.28389]
[1743171818025,1.5405,1892.8,1892.4,5.28427]
[1743171818026,5.28346,1892.7,1892.4,5.28427]
[1743171818298,2.22285,1892.8,1892.4,5.28427]
[1743171818516,12.7896,1892.8,1892.4,5.28427]
[1743171818734,7.50622,1892.8,1892.4,10.56845]
[1743171819009,10.56713,1892.7,1892.3,5.28455]
[1743171819222,6.91109,1892.6,1892.2,5.2847]
[1743171819400,1.6271,1892.6,1892.4,5.28408]
[1743171819599,1.6271,1892.6,1892.4,5.28404]
[1743171819781,5.28291,1892.9,1892.4,5.28404]
[1743171819782,1.6665,1892.9,1892.8,5.28317]
[1743171819997,1.6665,1892.9,1892.7,5.28335]
[1743171820315,1.6665,1893.1,1892.8,5.28306]
[1743171820514,2.361358,1893.1,1892.7,5.2834]
[1743171820687,2.311358,1893.1,1892.8,5.28297]
[1743171820889,1.6165,1893.1,1892.9,5.28274]
[1743171821387,1.6165,1893.1,1892.5,11.02198]
[1743171821388,5.28273,1893.0,1892.6,5.28347]
[1743171821788,6.89898,1893.1,1892.7,5.28341]
[1743171821992,0.10375404,1893.0,1892.8,5.28296]
[1743171822616,0.10375404,1893.0,1892.9,6.97171825]
[1743171822797,5.28673624,1893.5,1893.0,5.28247]
[1743171822996,5.81027362,1893.4,1893.0,5.28247]
[1743171823190,5.81027362,1893.4,1893.0,5.28243]
[1743171823390,5.91101297,1893.4,1893.0,10.56492]
[1743171823612,5.91101297,1893.4,1893.0,5.28243]
[1743171823815,7.55731297,1893.4,1893.0,5.28243]
[1743171824017,0.7557313,1893.3,1893.0,5.28243]
[1743171824423,0.10073935,1893.2,1893.0,5.28243]
[1743171824625,2.64197226,1893.1,1892.5,1.6274]
[1743171824794,6.89114,1893.1,1892.6,5.28354]
[1743171825000,0.78985335,1893.0,1892.7,5.28324]
[1743171825323,6.07260335,1893.0,1892.6,5.28371]
[1743171825833,6.07262335,1893.0,1892.6,5.28358]
[1743171826135,0.78985335,1893.0,1892.7,5.28326]
[1743171826335,0.10073935,1893.0,1892.7,5.28326]
[1743171827123,5.28303,1892.9,1892.5,5.2839]
[1743171827416,6.89124,1893.1,1892.6,5.2835]
[1743171827620,0.10073935,1893.0,1892.6,5.2835]
[1743171827834,0.10073935,1893.0,1892.7,5.33614829]
[1743171828127,0.79994728,1893.0,1892.7,5.28335]
[1743171828460,5.28304,1892.9,1892.5,11.00174]
[1743171828613,5.28318,1892.8,1892.5,11.00174]
[1743171828817,0.10073935,1892.7,1892.5,5.718]
[1743171829154,5.28332,1892.8,1892.5,5.718]
[1743171829309,0.10073935,1892.6,1892.5,5.718]
[1743171829498,5.811624,1892.8,1892.5,5.718]
[1743171829706,1.76403935,1892.6,1892.3,27.953]
[1743171829900,1.6633,1892.6,1892.3,27.953]
[1743171830114,0.10073935,1892.5,1892.4,5.28403]
[1743171830316,5.28356,1892.7,1892.3,33.23748]
[1743171830654,0.528356,1892.6,1892.3,33.23748]
[1743171830858,6.81389,1892.4,1892.0,11.00225]
[1743171831028,1.5296,1892.4,1892.1,5.28512]
[1743171831230,0.10073935,1892.3,1892.0,5.717]
[1743171831430,5.28469,1892.3,1892.0,5.717]
[1743171831626,0.10073935,1892.2,1892.0,5.717]
[1743171832113,0.10073935,1892.2,1891.8,3.3974582]
[1743171832434,6.242304,1892.8,1892.1,5.28486]
[1743171832435,6.78883,1892.5,1892.1,5.28486]
[1743171833058,6.78883,1892.5,1892.1,10.56983]
[1743171833215,1.5048,1892.5,1892.2,5.28465]
[1743171833420,6.78893,1892.5,1892.0,5.2852]
[1743171833658,7.467823,1892.5,1892.2,5.28484]
[1743171833854,1.5048,1892.5,1892.2,0.05284277]
[1743171834073,1.5048,1892.5,1892.2,5.28475]
[1743171834354,5.28347,1892.7,1892.3,5.28454]
[1743171834640,12.708304,1892.8,1892.4,5.28417]
[1743171834820,7.424994,1892.8,1892.3,5.28454]